{"text_format":"1","workbook":"xlsx","n_sheets":4,"sheets":["Source","Target","By_one","التقرير الشهري "],"not_rendered":{"charts":0,"images":0,"macros":1,"external_links":0,"defined_names":6,"comments":0,"pivot_tables":0},"unopened":[],"bounds":{"document_bytes":16777216,"sheet_cells":100000,"rows_first":2000,"rows_last":500,"rows_between":2000,"halvings":0,"cell_chars":16384,"cell_head_chars":4096},"cells_cut":0,"cells_raw":0,"read":"whole","date_system":"1900"}

{"sheet":"Source","index":0,"n_rows":578,"n_cols":11,"rows_kept":578,"cut":false,"hidden":false,"merged":[[0,0,1,8]]}
["سجل كهرباء المخيم"]
[]
["كود المشترك","الاسم الثلاثي","القراءة السابقة","القراءة الحالية ","كمية الاستهلاك ","سعر  الكيلو ","المبلغ المستحق ","فاقد الشبكة","تاريخ الدفع"]
[1,"عبدالقادر سعدي ",810,900,{"$f":"D4-C4","v":90},1.1000000000000001,{"$f":"F4*E4","v":99.000000000000014},null,"2021-02-21",null,"Printed On:25/02/2021"]
[2,"حسام سعدي ",305,360,55,1.1000000000000001,60.500000000000007,null,"2021-02-21"]
[3,"عبدالعزيز الشيخ",645,725,80,1.1000000000000001,88,null,"2021-02-21"]
[4,"بشير السعدي ",435,525,90,1.1000000000000001,99.000000000000014,null,"2021-02-21"]
[5,"إبراهيم العنزة ",310,365,55,1.1000000000000001,60.500000000000007,null,"2021-02-21",null,"Printed On:25/02/2021"]
[6,"احمد غسان سعيد",460,520,60,1.1000000000000001,66,null,"2021-02-21"]
[7,"أنس عليطو ",330,395,65,1.1000000000000001,71.5,null,"2021-02-21"]
[8,"اسعد سعدي ",515,580,65,1.1000000000000001,71.5,null,"2021-02-21"]
[9,"زكريا جرات ",430,475,45,1.1000000000000001,49.500000000000007,null,"2021-02-21"]
[10,"حكمت شقره",890,960,70,1.1000000000000001,77,null,"2021-02-21"]
[11,"احمد سعدي",1025,1100,75,1.1000000000000001,82.5,null,"2021-02-21"]
[12,"إسماعيل عبدالله الناصيف",228,0,-228,1.1000000000000001,-250.8,null,"2021-02-21"]
[null,null,null,null,null,null,null,null,null,null,"Printed On:24/02/2021"]
[null,null,null,null,null,null,null,null,null,null,"Printed On:23/02/2021"]
[null,null,null,null,null,null,null,null,null,null,"Printed On:24/02/2021"]
[null,null,null,null,null,null,null,null,null,null,"Printed On:22/02/2021"]
[null,null,null,null,null,null,null,null,null,null,"Printed On:21/02/21"]
[null,null,null,null,null,null,null,null,null,null,"Printed On:21/02/21"]
[null,null,null,null,null,null,null,null,null,null,"Printed On:21/02/21"]
[null,null,null,null,null,null,null,null,null,null,"Printed On:24/02/2021"]
[null,null,null,null,null,null,null,null,null,null,"Printed On:25/02/2021"]
[null,null,null,null,null,null,null,null,null,null,"Printed On:23/02/2021"]
[null,null,null,null,null,null,null,null,null,null,"Printed On:22/02/2021"]
[null,null,null,null,null,null,null,null,null,null,"Printed On:24/02/2021"]
[null,null,null,null,null,null,null,null,null,null,"Printed On:22/02/2021"]
[null,null,null,null,null,null,null,null,null,null,"Printed On:22/02/2021"]
[]
[]
[]
[null,null,null,null,null,null,null,null,null,null,"Printed On:21/02/21"]
[null,null,null,null,null,null,null,null,null,null,"Printed On:21/02/21"]
[null,null,null,null,null,null,null,null,null,null,"Printed On:21/02/21"]
[]
[]
[null,null,null,null,null,null,null,null,null,null,"Printed On:22/02/2021"]
[null,null,null,null,null,null,null,null,null,null,"Printed On:22/02/2021"]
[null,null,null,null,null,null,null,null,null,null,"Printed On:24/02/2021"]
[null,null,null,null,null,null,null,null,null,null,"Printed On:22/02/2021"]
[null,null,null,null,null,null,null,null,null,null,"Printed On:21/02/21"]
[]
[null,null,null,null,null,null,null,null,null,null,"Printed On:22/02/2021"]
[null,null,null,null,null,null,null,null,null,null,"Printed On:22/02/2021"]
[null,null,null,null,null,null,null,null,null,null,"Printed On:22/02/2021"]
[null,null,null,null,null,null,null,null,null,null,"Printed On:23/02/2021"]
[null,null,null,null,null,null,null,null,null,null,"Printed On:23/02/2021"]
[null,null,null,null,null,null,null,null,null,null,"Printed On:22/02/2021"]
[]
[]
[null,null,null,null,null,null,null,null,null,null,"Printed On:22/02/2021"]
[null,null,null,null,null,null,null,null,null,null,"Printed On:22/02/2021"]
[null,null,null,null,null,null,null,null,null,null,"Printed On:22/02/2021"]
[null,null,null,null,null,null,null,null,null,null,"Printed On:22/02/2021"]
[]
[null,null,null,null,null,null,null,null,null,null,"Printed On:22/02/2021"]
[null,null,null,null,null,null,null,null,null,null,"Printed On:22/02/2021"]
[]
[]
[null,null,null,null,null,null,null,null,null,null,"Printed On:25/02/2021"]
[null,null,null,null,null,null,null,null,null,null,"Printed On:23/02/2021"]
[null,null,null,null,null,null,null,null,null,null,"Printed On:24/02/2021"]
[null,null,null,null,null,null,null,null,null,null,"Printed On:23/02/2021"]
[null,null,null,null,null,null,null,null,null,null,"Printed On:22/02/2021"]
[null,null,null,null,null,null,null,null,null,null,"Printed On:21/02/21"]
[null,null,null,null,null,null,null,null,null,null,"Printed On:23/02/2021"]
[null,null,null,null,null,null,null,null,null,null,"Printed On:22/02/2021"]
[null,null,null,null,null,null,null,null,null,null,"Printed On:23/02/2021"]
[]
[null,null,null,null,null,null,null,null,null,null,"Printed On:23/02/2021"]
[null,null,null,null,null,null,null,null,null,null,"Printed On:21/02/21"]
[null,null,null,null,null,null,null,null,null,null,"Printed On:21/02/21"]
[null,null,null,null,null,null,null,null,null,null,"Printed On:24/02/2021"]
[null,null,null,null,null,null,null,null,null,null,"Printed On:24/02/2021"]
[]
[null,null,null,null,null,null,null,null,null,null,"Printed On:24/02/2021"]
[null,null,null,null,null,null,null,null,null,null,"Printed On:24/02/2021"]
[null,null,null,null,null,null,null,null,null,null,"Printed On:25/02/2021"]
[null,null,null,null,null,null,null,null,null,null,"Printed On:22/02/2021"]
[null,null,null,null,null,null,null,null,null,null,"Printed On:21/02/21"]
[null,null,null,null,null,null,null,null,null,null,"Printed On:22/02/2021"]
[]
[null,null,null,null,null,null,null,null,null,null,"Printed On:23/02/2021"]
[null,null,null,null,null,null,null,null,null,null,"Printed On:21/02/21"]
[null,null,null,null,null,null,null,null,null,null,"Printed On:23/02/2021"]
[null,null,null,null,null,null,null,null,null,null,"Printed On:21/02/21"]
[null,null,null,null,null,null,null,null,null,null,"Printed On:23/02/2021"]
[null,null,null,null,null,null,null,null,null,null,"Printed On:23/02/2021"]
[null,null,null,null,null,null,null,null,null,null,"Printed On:22/02/2021"]
[null,null,null,null,null,null,null,null,null,null,"Printed On:21/02/21"]
[null,null,null,null,null,null,null,null,null,null,"Printed On:22/02/2021"]
[null,null,null,null,null,null,null,null,null,null,"Printed On:23/02/2021"]
[null,null,null,null,null,null,null,null,null,null,"Printed On:22/02/2021"]
[null,null,null,null,null,null,null,null,null,null,"Printed On:23/02/2021"]
[null,null,null,null,null,null,null,null,null,null,"Printed On:24/02/2021"]
[]
[]
[]
[]
[null,null,null,null,null,null,null,null,null,null,"Printed On:22/02/2021"]
[null,null,null,null,null,null,null,null,null,null,"Printed On:21/02/21"]
[null,null,null,null,null,null,null,null,null,null,"Printed On:24/02/2021"]
[null,null,null,null,null,null,null,null,null,null,"Printed On:22/02/2021"]
[null,null,null,null,null,null,null,null,null,null,"Printed On:21/02/21"]
[]
[null,null,null,null,null,null,null,null,null,null,"Printed On:25/02/2021"]
[null,null,null,null,null,null,null,null,null,null,"Printed On:21/02/21"]
[null,null,null,null,null,null,null,null,null,null,"Printed On:24/02/2021"]
[]
[null,null,null,null,null,null,null,null,null,null,"Printed On:23/02/2021"]
[null,null,null,null,null,null,null,null,null,null,"Printed On:23/02/2021"]
[null,null,null,null,null,null,null,null,null,null,"Printed On:24/02/2021"]
[null,null,null,null,null,null,null,null,null,null,"Printed On:23/02/2021"]
[null,null,null,null,null,null,null,null,null,null,"Printed On:21/02/21"]
[null,null,null,null,null,null,null,null,null,null,"Printed On:24/02/2021"]
[]
[null,null,null,null,null,null,null,null,null,null,"Printed On:25/02/2021"]
[]
[null,null,null,null,null,null,null,null,null,null,"Printed On:23/02/2021"]
[]
[]
[]
[null,null,null,null,null,null,null,null,null,null,"Printed On:22/02/2021"]
[null,null,null,null,null,null,null,null,null,null,"Printed On:21/02/21"]
[null,null,null,null,null,null,null,null,null,null,"Printed On:23/02/2021"]
[null,null,null,null,null,null,null,null,null,null,"Printed On:21/02/21"]
[null,null,null,null,null,null,null,null,null,null,"Printed On:21/02/21"]
[null,null,null,null,null,null,null,null,null,null,"Printed On:21/02/21"]
[]
[null,null,null,null,null,null,null,null,null,null,"Printed On:22/02/2021"]
[]
[null,null,null,null,null,null,null,null,null,null,"Printed On:22/02/2021"]
[]
[null,null,null,null,null,null,null,null,null,null,"Printed On:23/02/2021"]
[]
[null,null,null,null,null,null,null,null,null,null,"Printed On:22/02/2021"]
[]
[null,null,null,null,null,null,null,null,null,null,"Printed On:21/02/21"]
[null,null,null,null,null,null,null,null,null,null,"Printed On:21/02/21"]
[null,null,null,null,null,null,null,null,null,null,"Printed On:24/02/2021"]
[null,null,null,null,null,null,null,null,null,null,"Printed On:23/02/2021"]
[null,null,null,null,null,null,null,null,null,null,"Printed On:22/02/2021"]
[null,null,null,null,null,null,null,null,null,null,"Printed On:24/02/2021"]
[null,null,null,null,null,null,null,null,null,null,"Printed On:24/02/2021"]
[]
[null,null,null,null,null,null,null,null,null,null,"Printed On:22/02/2021"]
[null,null,null,null,null,null,null,null,null,null,"Printed On:24/02/2021"]
[null,null,null,null,null,null,null,null,null,null,"Printed On:22/02/2021"]
[null,null,null,null,null,null,null,null,null,null,"Printed On:23/02/2021"]
[null,null,null,null,null,null,null,null,null,null,"Printed On:23/02/2021"]
[null,null,null,null,null,null,null,null,null,null,"Printed On:22/02/2021"]
[null,null,null,null,null,null,null,null,null,null,"Printed On:22/02/2021"]
[null,null,null,null,null,null,null,null,null,null,"Printed On:21/02/21"]
[null,null,null,null,null,null,null,null,null,null,"Printed On:23/02/2021"]
[null,null,null,null,null,null,null,null,null,null,"Printed On:21/02/21"]
[null,null,null,null,null,null,null,null,null,null,"Printed On:23/02/2021"]
[]
[]
[]
[]
[null,null,null,null,null,null,null,null,null,null,"Printed On:24/02/2021"]
[]
[null,null,null,null,null,null,null,null,null,null,"Printed On:24/02/2021"]
[null,null,null,null,null,null,null,null,null,null,"Printed On:23/02/2021"]
[]
[null,null,null,null,null,null,null,null,null,null,"Printed On:23/02/2021"]
[null,null,null,null,null,null,null,null,null,null,"Printed On:22/02/2021"]
[null,null,null,null,null,null,null,null,null,null,"Printed On:23/02/2021"]
[null,null,null,null,null,null,null,null,null,null,"Printed On:22/02/2021"]
[]
[null,null,null,null,null,null,null,null,null,null,"Printed On:22/02/2021"]
[null,null,null,null,null,null,null,null,null,null,"Printed On:21/02/21"]
[null,null,null,null,null,null,null,null,null,null,"Printed On:22/02/2021"]
[null,null,null,null,null,null,null,null,null,null,"Printed On:22/02/2021"]
[null,null,null,null,null,null,null,null,null,null,"Printed On:23/02/2021"]
[null,null,null,null,null,null,null,null,null,null,"Printed On:21/02/21"]
[]
[]
[null,null,null,null,null,null,null,null,null,null,"Printed On:22/02/2021"]
[null,null,null,null,null,null,null,null,null,null,"Printed On:22/02/2021"]
[null,null,null,null,null,null,null,null,null,null,"Printed On:22/02/2021"]
[null,null,null,null,null,null,null,null,null,null,"Printed On:22/02/2021"]
[null,null,null,null,null,null,null,null,null,null,"Printed On:25/02/2021"]
[null,null,null,null,null,null,null,null,null,null,"Printed On:22/02/2021"]
[null,null,null,null,null,null,null,null,null,null,"Printed On:21/02/21"]
[null,null,null,null,null,null,null,null,null,null,"Printed On:23/02/2021"]
[null,null,null,null,null,null,null,null,null,null,"Printed On:21/02/21"]
[null,null,null,null,null,null,null,null,null,null,"Printed On:23/02/2021"]
[null,null,null,null,null,null,null,null,null,null,"Printed On:21/02/21"]
[]
[null,null,null,null,null,null,null,null,null,null,"Printed On:25/02/2021"]
[]
[null,null,null,null,null,null,null,null,null,null,"Printed On:22/02/2021"]
[]
[null,null,null,null,null,null,null,null,null,null,"Printed On:22/02/2021"]
[null,null,null,null,null,null,null,null,null,null,"Printed On:22/02/2021"]
[]
[null,null,null,null,null,null,null,null,null,null,"Printed On:22/02/2021"]
[null,null,null,null,null,null,null,null,null,null,"Printed On:22/02/2021"]
[null,null,null,null,null,null,null,null,null,null,"Printed On:24/02/2021"]
[null,null,null,null,null,null,null,null,null,null,"Printed On:24/02/2021"]
[]
[null,null,null,null,null,null,null,null,null,null,"Printed On:23/02/2021"]
[]
[null,null,null,null,null,null,null,null,null,null,"Printed On:22/02/2021"]
[null,null,null,null,null,null,null,null,null,null,"Printed On:22/02/2021"]
[null,null,null,null,null,null,null,null,null,null,"Printed On:22/02/2021"]
[null,null,null,null,null,null,null,null,null,null,"Printed On:23/02/2021"]
[null,null,null,null,null,null,null,null,null,null,"Printed On:22/02/2021"]
[]
[]
[null,null,null,null,null,null,null,null,null,null,"Printed On:21/02/21"]
[null,null,null,null,null,null,null,null,null,null,"Printed On:21/02/21"]
[]
[]
[null,null,null,null,null,null,null,null,null,null,"Printed On:21/02/21"]
[null,null,null,null,null,null,null,null,null,null,"Printed On:21/02/21"]
[null,null,null,null,null,null,null,null,null,null,"Printed On:25/02/2021"]
[null,null,null,null,null,null,null,null,null,null,"Printed On:23/02/2021"]
[null,null,null,null,null,null,null,null,null,null,"Printed On:23/02/2021"]
[null,null,null,null,null,null,null,null,null,null,"Printed On:21/02/21"]
[]
[]
[null,null,null,null,null,null,null,null,null,null,"Printed On:24/02/2021"]
[null,null,null,null,null,null,null,null,null,null,"Printed On:22/02/2021"]
[null,null,null,null,null,null,null,null,null,null,"Printed On:22/02/2021"]
[null,null,null,null,null,null,null,null,null,null,"Printed On:22/02/2021"]
[null,null,null,null,null,null,null,null,null,null,"Printed On:22/02/2021"]
[null,null,null,null,null,null,null,null,null,null,"Printed On:21/02/21"]
[null,null,null,null,null,null,null,null,null,null,"Printed On:21/02/21"]
[null,null,null,null,null,null,null,null,null,null,"Printed On:24/02/2021"]
[]
[]
[]
[null,null,null,null,null,null,null,null,null,null,"Printed On:21/02/21"]
[null,null,null,null,null,null,null,null,null,null,"Printed On:23/02/2021"]
[]
[null,null,null,null,null,null,null,null,null,null,"Printed On:21/02/21"]
[null,null,null,null,null,null,null,null,null,null,"Printed On:23/02/2021"]
[]
[]
[null,null,null,null,null,null,null,null,null,null,"Printed On:21/02/21"]
[null,null,null,null,null,null,null,null,null,null,"Printed On:24/02/2021"]
[]
[]
[null,null,null,null,null,null,null,null,null,null,"Printed On:22/02/2021"]
[null,null,null,null,null,null,null,null,null,null,"Printed On:21/02/21"]
[]
[]
[]
[null,null,null,null,null,null,null,null,null,null,"Printed On:22/02/2021"]
[]
[null,null,null,null,null,null,null,null,null,null,"Printed On:22/02/2021"]
[null,null,null,null,null,null,null,null,null,null,"Printed On:25/02/2021"]
[null,null,null,null,null,null,null,null,null,null,"Printed On:21/02/21"]
[]
[null,null,null,null,null,null,null,null,null,null,"Printed On:22/02/2021"]
[]
[null,null,null,null,null,null,null,null,null,null,"Printed On:24/02/2021"]
[null,null,null,null,null,null,null,null,null,null,"Printed On:21/02/21"]
[null,null,null,null,null,null,null,null,null,null,"Printed On:24/02/2021"]
[null,null,null,null,null,null,null,null,null,null,"Printed On:22/02/2021"]
[null,null,null,null,null,null,null,null,null,null,"Printed On:23/02/2021"]
[null,null,null,null,null,null,null,null,null,null,"Printed On:21/02/21"]
[null,null,null,null,null,null,null,null,null,null,"Printed On:25/02/2021"]
[null,null,null,null,null,null,null,null,null,null,"Printed On:23/02/2021"]
[null,null,null,null,null,null,null,null,null,null,"Printed On:22/02/2021"]
[null,null,null,null,null,null,null,null,null,null,"Printed On:22/02/2021"]
[]
[null,null,null,null,null,null,null,null,null,null,"Printed On:23/02/2021"]
[null,null,null,null,null,null,null,null,null,null,"Printed On:22/02/2021"]
[null,null,null,null,null,null,null,null,null,null,"Printed On:24/02/2021"]
[null,null,null,null,null,null,null,null,null,null,"Printed On:23/02/2021"]
[null,null,null,null,null,null,null,null,null,null,"Printed On:23/02/2021"]
[null,null,null,null,null,null,null,null,null,null,"Printed On:23/02/2021"]
[null,null,null,null,null,null,null,null,null,null,"Printed On:23/02/2021"]
[null,null,null,null,null,null,null,null,null,null,"Printed On:22/02/2021"]
[null,null,null,null,null,null,null,null,null,null,"Printed On:21/02/21"]
[null,null,null,null,null,null,null,null,null,null,"Printed On:23/02/2021"]
[null,null,null,null,null,null,null,null,null,null,"Printed On:23/02/2021"]
[null,null,null,null,null,null,null,null,null,null,"Printed On:24/02/2021"]
[]
[]
[]
[]
[null,null,null,null,null,null,null,null,null,null,"Printed On:21/02/21"]
[null,null,null,null,null,null,null,null,null,null,"Printed On:21/02/21"]
[]
[null,null,null,null,null,null,null,null,null,null,"Printed On:21/02/21"]
[null,null,null,null,null,null,null,null,null,null,"Printed On:21/02/21"]
[]
[null,null,null,null,null,null,null,null,null,null,"Printed On:22/02/2021"]
[null,null,null,null,null,null,null,null,null,null,"Printed On:21/02/21"]
[null,null,null,null,null,null,null,null,null,null,"Printed On:21/02/21"]
[null,null,null,null,null,null,null,null,null,null,"Printed On:23/02/2021"]
[]
[null,null,null,null,null,null,null,null,null,null,"Printed On:22/02/2021"]
[null,null,null,null,null,null,null,null,null,null,"Printed On:22/02/2021"]
[null,null,null,null,null,null,null,null,null,null,"Printed On:24/02/2021"]
[null,null,null,null,null,null,null,null,null,null,"Printed On:24/02/2021"]
[]
[null,null,null,null,null,null,null,null,null,null,"Printed On:21/02/21"]
[]
[null,null,null,null,null,null,null,null,null,null,"Printed On:23/02/2021"]
[null,null,null,null,null,null,null,null,null,null,"Printed On:24/02/2021"]
[null,null,null,null,null,null,null,null,null,null,"Printed On:24/02/2021"]
[null,null,null,null,null,null,null,null,null,null,"Printed On:21/02/21"]
[null,null,null,null,null,null,null,null,null,null,"Printed On:24/02/2021"]
[null,null,null,null,null,null,null,null,null,null,"Printed On:24/02/2021"]
[null,null,null,null,null,null,null,null,null,null,"Printed On:22/02/2021"]
[null,null,null,null,null,null,null,null,null,null,"Printed On:21/02/21"]
[]
[null,null,null,null,null,null,null,null,null,null,"Printed On:25/02/2021"]
[null,null,null,null,null,null,null,null,null,null,"Printed On:21/02/21"]
[null,null,null,null,null,null,null,null,null,null,"Printed On:21/02/21"]
[null,null,null,null,null,null,null,null,null,null,"Printed On:22/02/2021"]
[]
[null,null,null,null,null,null,null,null,null,null,"Printed On:21/02/21"]
[null,null,null,null,null,null,null,null,null,null,"Printed On:21/02/21"]
[null,null,null,null,null,null,null,null,null,null,"Printed On:21/02/21"]
[null,null,null,null,null,null,null,null,null,null,"Printed On:23/02/2021"]
[]
[null,null,null,null,null,null,null,null,null,null,"Printed On:22/02/2021"]
[null,null,null,null,null,null,null,null,null,null,"Printed On:24/02/2021"]
[]
[null,null,null,null,null,null,null,null,null,null,"Printed On:23/02/2021"]
[]
[]
[null,null,null,null,null,null,null,null,null,null,"Printed On:22/02/2021"]
[]
[]
[null,null,null,null,null,null,null,null,null,null,"Printed On:24/02/2021"]
[]
[]
[null,null,null,null,null,null,null,null,null,null,"Printed On:22/02/2021"]
[null,null,null,null,null,null,null,null,null,null,"Printed On:22/02/2021"]
[null,null,null,null,null,null,null,null,null,null,"Printed On:24/02/2021"]
[null,null,null,null,null,null,null,null,null,null,"Printed On:23/02/2021"]
[]
[]
[]
[]
[null,null,null,null,null,null,null,null,null,null,"Printed On:23/02/2021"]
[null,null,null,null,null,null,null,null,null,null,"Printed On:24/02/2021"]
[]
[]
[null,null,null,null,null,null,null,null,null,null,"Printed On:24/02/2021"]
[null,null,null,null,null,null,null,null,null,null,"Printed On:23/02/2021"]
[]
[]
[null,null,null,null,null,null,null,null,null,null,"Printed On:22/02/2021"]
[null,null,null,null,null,null,null,null,null,null,"Printed On:23/02/2021"]
[null,null,null,null,null,null,null,null,null,null,"Printed On:23/02/2021"]
[]
[]
[]
[]
[]
[null,null,null,null,null,null,null,null,null,null,"Printed On:23/02/2021"]
[null,null,null,null,null,null,null,null,null,null,"Printed On:22/02/2021"]
[null,null,null,null,null,null,null,null,null,null,"Printed On:25/02/2021"]
[null,null,null,null,null,null,null,null,null,null,"Printed On:23/02/2021"]
[null,null,null,null,null,null,null,null,null,null,"Printed On:24/02/2021"]
[null,null,null,null,null,null,null,null,null,null,"Printed On:24/02/2021"]
[null,null,null,null,null,null,null,null,null,null,"Printed On:21/02/21"]
[null,null,null,null,null,null,null,null,null,null,"Printed On:23/02/2021"]
[]
[null,null,null,null,null,null,null,null,null,null,"Printed On:22/02/2021"]
[]
[]
[]
[null,null,null,null,null,null,null,null,null,null,"Printed On:24/02/2021"]
[null,null,null,null,null,null,null,null,null,null,"Printed On:24/02/2021"]
[null,null,null,null,null,null,null,null,null,null,"Printed On:21/02/21"]
[null,null,null,null,null,null,null,null,null,null,"Printed On:21/02/21"]
[null,null,null,null,null,null,null,null,null,null,"Printed On:22/02/2021"]
[]
[null,null,null,null,null,null,null,null,null,null,"Printed On:22/02/2021"]
[null,null,null,null,null,null,null,null,null,null,"Printed On:22/02/2021"]
[null,null,null,null,null,null,null,null,null,null,"Printed On:22/02/2021"]
[]
[null,null,null,null,null,null,null,null,null,null,"Printed On:24/02/2021"]
[null,null,null,null,null,null,null,null,null,null,"Printed On:24/02/2021"]
[null,null,null,null,null,null,null,null,null,null,"Printed On:24/02/2021"]
[null,null,null,null,null,null,null,null,null,null,"Printed On:21/02/21"]
[null,null,null,null,null,null,null,null,null,null,"Printed On:24/02/2021"]
[null,null,null,null,null,null,null,null,null,null,"Printed On:24/02/2021"]
[]
[null,null,null,null,null,null,null,null,null,null,"Printed On:24/02/2021"]
[null,null,null,null,null,null,null,null,null,null,"Printed On:23/02/2021"]
[]
[]
[null,null,null,null,null,null,null,null,null,null,"Printed On:23/02/2021"]
[null,null,null,null,null,null,null,null,null,null,"Printed On:23/02/2021"]
[null,null,null,null,null,null,null,null,null,null,"Printed On:22/02/2021"]
[null,null,null,null,null,null,null,null,null,null,"Printed On:22/02/2021"]
[]
[null,null,null,null,null,null,null,null,null,null,"Printed On:21/02/21"]
[null,null,null,null,null,null,null,null,null,null,"Printed On:23/02/2021"]
[null,null,null,null,null,null,null,null,null,null,"Printed On:22/02/2021"]
[]
[null,null,null,null,null,null,null,null,null,null,"Printed On:25/02/2021"]
[]
[]
[]
[null,null,null,null,null,null,null,null,null,null,"Printed On:23/02/2021"]
[]
[null,null,null,null,null,null,null,null,null,null,"Printed On:23/02/2021"]
[]
[null,null,null,null,null,null,null,null,null,null,"Printed On:22/02/2021"]
[]
[null,null,null,null,null,null,null,null,null,null,"Printed On:22/02/2021"]
[null,null,null,null,null,null,null,null,null,null,"Printed On:22/02/2021"]
[null,null,null,null,null,null,null,null,null,null,"Printed On:22/02/2021"]
[null,null,null,null,null,null,null,null,null,null,"Printed On:24/02/2021"]
[null,null,null,null,null,null,null,null,null,null,"Printed On:23/02/2021"]
[null,null,null,null,null,null,null,null,null,null,"Printed On:23/02/2021"]
[]
[null,null,null,null,null,null,null,null,null,null,"Printed On:22/02/2021"]
[null,null,null,null,null,null,null,null,null,null,"Printed On:22/02/2021"]
[null,null,null,null,null,null,null,null,null,null,"Printed On:22/02/2021"]
[]
[null,null,null,null,null,null,null,null,null,null,"Printed On:21/02/21"]
[null,null,null,null,null,null,null,null,null,null,"Printed On:21/02/21"]
[]
[]
[null,null,null,null,null,null,null,null,null,null,"Printed On:21/02/21"]
[null,null,null,null,null,null,null,null,null,null,"Printed On:21/02/21"]
[null,null,null,null,null,null,null,null,null,null,"Printed On:21/02/21"]
[null,null,null,null,null,null,null,null,null,null,"Printed On:21/02/21"]
[null,null,null,null,null,null,null,null,null,null,"Printed On:21/02/21"]
[]
[]
[null,null,null,null,null,null,null,null,null,null,"Printed On:21/02/21"]
[null,null,null,null,null,null,null,null,null,null,"Printed On:21/02/21"]
[null,null,null,null,null,null,null,null,null,null,"Printed On:21/02/21"]
[]
[]
[null,null,null,null,null,null,null,null,null,null,"Printed On:21/02/21"]
[]
[]
[null,null,null,null,null,null,null,null,null,null,"Printed On:21/02/21"]
[null,null,null,null,null,null,null,null,null,null,"Printed On:21/02/21"]
[null,null,null,null,null,null,null,null,null,null,"Printed On:21/02/21"]
[null,null,null,null,null,null,null,null,null,null,"Printed On:21/02/21"]
[]
[null,null,null,null,null,null,null,null,null,null,"Printed On:22/02/2021"]
[]
[]
[null,null,null,null,null,null,null,null,null,null,"Printed On:23/02/2021"]
[null,null,null,null,null,null,null,null,null,null,"Printed On:21/02/21"]
[null,null,null,null,null,null,null,null,null,null,"Printed On:21/02/21"]
[null,null,null,null,null,null,null,null,null,null,"Printed On:22/02/2021"]
[null,null,null,null,null,null,null,null,null,null,"Printed On:21/02/21"]
[null,null,null,null,null,null,null,null,null,null,"Printed On:22/02/2021"]
[null,null,null,null,null,null,null,null,null,null,"Printed On:21/02/21"]
[null,null,null,null,null,null,null,null,null,null,"Printed On:21/02/21"]
[null,null,null,null,null,null,null,null,null,null,"Printed On:24/02/2021"]
[]
[]
[]
[null,null,null,null,null,null,null,null,null,null,"Printed On:23/02/2021"]
[null,null,null,null,null,null,null,null,null,null,"Printed On:23/02/2021"]
[null,null,null,null,null,null,null,null,null,null,"Printed On:23/02/2021"]
[null,null,null,null,null,null,null,null,null,null,"Printed On:23/02/2021"]
[null,null,null,null,null,null,null,null,null,null,"Printed On:24/02/2021"]
[]
[]
[]
[null,null,null,null,null,null,null,null,null,null,"Printed On:22/02/2021"]
[null,null,null,null,null,null,null,null,null,null,"Printed On:23/02/2021"]
[]
[null,null,null,null,null,null,null,null,null,null,"Printed On:22/02/2021"]
[]
[]
[]
[]
[]
[]
[null,null,null,null,null,null,null,null,null,null,"Printed On:22/02/2021"]
[null,null,null,null,null,null,null,null,null,null,"Printed On:22/02/2021"]
[]
[]
[]
[]
[]
[]
[]
[]
[]
[]
[]
[null,null,null,null,null,null,null,null,null,null,"Printed On:22/02/2021"]
[null,null,null,null,null,null,null,null,null,null,"Printed On:21/02/21"]
[]
[]
[null,null,null,null,null,null,null,null,null,null,"Printed On:24/02/2021"]
[null,null,null,null,null,null,null,null,null,null,"Printed On:24/02/2021"]
[null,null,null,null,null,null,null,null,null,null,"Printed On:23/02/2021"]
[]
[]
[]
[null,null,null,null,null,null,null,null,null,null,"Printed On:21/02/21"]
[null,null,null,null,null,null,null,null,null,null,"Printed On:23/02/2021"]
[null,null,null,null,null,null,null,null,null,null,"Printed On:24/02/2021"]
[null,null,null,null,null,null,null,null,null,null,"Printed On:23/02/2021"]
[]
[null,null,null,null,null,null,null,null,null,null,"Printed On:22/02/2021"]
[null,null,null,null,null,null,null,null,null,null,"Printed On:23/02/2021"]
[]
[null,null,null,null,null,null,null,null,null,null,"Printed On:22/02/2021"]
[null,null,null,null,null,null,null,null,null,null,"Printed On:21/02/21"]
[]
[null,null,null,null,null,null,null,null,null,null,"Printed On:22/02/2021"]
[]
[null,null,null,null,null,null,null,null,null,null,"Printed On:24/02/2021"]
[null,null,null,null,null,null,null,null,null,null,"Printed On:21/02/21"]
[null,null,null,null,null,null,null,null,null,null,"Printed On:23/02/2021"]
[null,null,null,null,null,null,null,null,null,null,"Printed On:22/02/2021"]
[null,null,null,null,null,null,null,null,null,null,"Printed On:21/02/21"]
[null,null,null,null,null,null,null,null,null,null,"Printed On:23/02/2021"]
[null,null,null,null,null,null,null,null,null,null,"Printed On:22/02/2021"]
[null,null,null,null,null,null,null,null,null,null,"Printed On:22/02/2021"]
[null,null,null,null,null,null,null,null,null,null,"Printed On:21/02/21"]
[null,null,null,null,null,null,null,null,null,null,"Printed On:23/02/2021"]
[]
[null,null,null,null,null,null,null,null,null,null,"Printed On:22/02/2021"]
[null,null,null,null,null,null,null,null,null,null,"Printed On:21/02/21"]
[null,null,null,null,null,null,null,null,null,null,"Printed On:22/02/2021"]
[]
[]
[]
[]
[]
[]
[]
[]
[]
[]
[]
[]
[]
[]
[]
[]
[]
[]
[]
[]
[]
[]
[]
[null,null,null,null,null,null,null,null,null,null,"Printed On:22/02/2021"]
[]
[null,null,null,null,null,null,null,null,null,null,"Printed On:22/02/2021"]
[null,null,null,null,null,null,null,null,null,null,"Printed On:22/02/2021"]
[]
[null,null,null,null,null,null,null,null,null,null,"Printed On:21/02/21"]
[null,null,null,null,null,null,null,null,null,null,"Printed On:22/02/2021"]
[]
[]
[null,null,null,null,null,null,null,null,null,null,"Printed On:21/02/21"]
[null,null,null,null,null,null,null,null,null,null,"Printed On:22/02/2021"]
[null,null,null,null,null,null,null,null,null,null,"Printed On:24/02/2021"]
[null,null,null,null,null,null,null,null,null,null,"Printed On:25/02/2021"]
[null,null,null,null,null,null,null,null,null,null,"Printed On:24/02/2021"]
[]
[null,null,null,null,null,null,null,null,null,null,"Printed On:24/02/2021"]
[null,null,null,null,null,null,null,null,null,null,"Printed On:22/02/2021"]
[null,null,null,null,null,null,null,null,null,null,"Printed On:24/02/2021"]
[null,null,null,null,null,null,null,null,null,null,"Printed On:22/02/2021"]
[null,null,null,null,null,null,null,null,null,null,"Printed On:23/02/2021"]
[null,null,null,null,null,null,null,null,null,null,"Printed On:22/02/2021"]
[]
[]
[]
[null,null,null,null,null,null,null,null,null,null,"Printed On:21/02/21"]

{"sheet":"Target","index":1,"n_rows":35,"n_cols":11,"rows_kept":35,"cut":false,"hidden":false,"merged":[[6,7,7,10]]}
[null," 21/11/2020",null,null," 21/11/2020",null,null,null,null,5,"Start"]
["رقم المشترك",5,null,"رقم المشترك",6]
["الاسم الثلاثي ","إبراهيم العنزة ",null,"الاسم الثلاثي ","احمد غسان سعيد"]
["القراءة السابقة",235,null,"القراءة السابقة",345]
["القراءة الحالية",270,null,"القراءة الحالية",400]
["كمية الاستهلاك",35,null,"كمية الاستهلاك",55]
["سعر الكيلو",1.1000000000000001,null,"سعر الكيلو",1.1000000000000001,null,null,"طباعه "]
["المبلغ المستحق ",41.5,null,"المبلغ المستحق ",63.500000000000007]
[]
[null," 21/11/2020",null,null," 21/11/2020"]
["رقم المشترك",7,null,"رقم المشترك",8]
["الاسم الثلاثي ","أنس عليطو ",null,"الاسم الثلاثي ","اسعد سعدي "]
["القراءة السابقة",220,null,"القراءة السابقة",0]
["القراءة الحالية",275,null,"القراءة الحالية",450]
["كمية الاستهلاك",55,null,"كمية الاستهلاك",450]
["سعر الكيلو",1.1000000000000001,null,"سعر الكيلو",1.1000000000000001]
["المبلغ المستحق ",63.500000000000007,null,"المبلغ المستحق ",498.00000000000006]
[]
[null," 21/11/2020",null,null," 21/11/2020"]
["رقم المشترك ",9,null,"رقم المشترك",10]
["الاسم الثلاثي ","زكريا جرات ",null,"الاسم الثلاثي ","حكمت شقره"]
["القراءة السابقة",340,null,"القراءة السابقة",745]
["القراءة الحالية",385,null,"القراءة الحالية",815]
["كمية الاستهلاك",45,null,"كمية الاستهلاك",70]
["سعر الكيلو",1.1000000000000001,null,"سعر الكيلو",1.1000000000000001]
["المبلغ المستحق ",52.500000000000007,null,"المبلغ المستحق ",80]
[]
[null," 21/11/2020",null,null," 21/11/2020"]
["رقم المشترك",11,null,"رقم المشترك",12]
["الاسم الثلاثي ","احمد سعدي",null,"الاسم الثلاثي ","محمد إسماعيل "]
["القراءة السابقة",863,null,"القراءة السابقة",230]
["القراءة الحالية",950,null,"القراءة الحالية",230]
["كمية الاستهلاك",87,null,"كمية الاستهلاك",0]
["سعر الكيلو",1.1000000000000001,null,"سعر الكيلو",1.1000000000000001]
["المبلغ المستحق ",98.7,null,"المبلغ المستحق ",3]

{"sheet":"By_one","index":2,"n_rows":14,"n_cols":9,"rows_kept":14,"cut":false,"hidden":false,"merged":[[4,3,4,4]]}
[]
[]
[]
[]
[null,null,null,"كهرباء مخيم الكراج",null,null,null,5,"Start"]
[null,null,null,"كود المشترك",5]
[null,null,null,"الاسم الثلاثي ","إبراهيم العنزة ",null,null,1]
[null,null,null,"القراءة السابقة",310]
[null,null,null,"القراءة الحالية",365]
[null,null,null,"كمية الاستهلاك",55]
[null,null,null,"سعر الكيلو",1.1000000000000001]
[null,null,null,"المبلغ المستحق ",60.5]
[null,null,null,"فاقد الشبكة "]
[null,null,null,"تاريخ الدفع ","2021-02-21"]

{"sheet":"التقرير الشهري ","index":3,"n_rows":7,"n_cols":6,"rows_kept":7,"cut":false,"hidden":false,"merged":[[2,4,2,5]]}
[]
[]
[null,null,null,null,"التقرير الشهري "]
[null,null,null,null,"كمية الاستهلاك الاجمالية ",29715]
[null,null,null,null,"اجمالي المبلغ المستحق ",32705.249999999996]
[null,null,null,null,"المبلغ الموجود في الصندوق ",27714.550000000003]
[null,null,null,null,"المبلغ الذي لم يدفع بعد",4990.7000000000007]